bitfinex/quotes_ETHUSD_20250106
["timestamp","ask_amount","ask_price","bid_price","bid_amount"]
[1736178536127,2.71106,3688.6,3688.1,0.156]
[1736178536708,3.26377263,3688.8,3688.2,1.6608]
[1736178536939,3.26377263,3688.8,3688.2,1.68791071]
[1736178537145,2.71107,3688.6,3688.2,1.87230178]
[1736178537322,2.71117,3688.5,3688.2,1.84519107]
[1736178537525,2.71117,3688.5,3688.2,1.6608]
[1736178537758,2.71121,3688.4,3688.1,0.156]
[1736178538530,2.71103,3688.7,3688.1,0.156]
[1736178538764,2.71106,3688.6,3688.1,0.156]
[1736178539268,2.71111,3688.6,3688.1,0.156]
[1736178539478,0.55286263,3688.8,3688.1,0.156]
[1736178539771,0.24279872,3688.7,3688.1,0.156]
[1736178540116,2.71127,3688.4,3688.2,0.156]
[1736178540943,2.71107,3688.6,3688.2,0.156]
[1736178541146,2.71107,3688.6,3688.3,1.5362]
[1736178541715,0.57991032,3688.8,3688.2,0.156]
[1736178541920,0.79566135,3688.8,3688.2,0.156]
[1736178542567,2.71115,3688.5,3688.2,0.156]
[1736178542725,2.711,3688.7,3688.2,0.156]
[1736178542923,2.71114,3688.5,3688.2,0.156]
[1736178543219,0.55286263,3688.8,3688.2,0.156]
[1736178543533,2.71127,3688.3,3688.2,0.156]
[1736178544532,2.7112,3688.4,3688.2,0.156]
[1736178545059,2.71106,3688.6,3688.2,0.156]
[1736178545638,3.26378263,3688.8,3688.3,0.02711093]
[1736178546042,2.71105,3688.6,3688.2,0.32793115]
[1736178546865,0.55286263,3688.8,3688.2,0.32793115]
[1736178547064,0.55286263,3688.8,3688.3,0.02710892]
[1736178547920,0.55286263,3688.8,3688.2,0.32793115]
[1736178548286,0.55286263,3688.8,3688.3,0.21352132]
[1736178548287,2.71098,3688.7,3688.3,0.21352132]
[1736178548627,2.71065,3689.2,3688.3,0.21352132]
[1736178548886,2.71046,3689.5,3688.4,1.6536]
[1736178549184,2.71072,3689.1,3688.5,0.02710636]
[1736178549466,0.5482245,3689.2,3688.4,1.6536]
[1736178549625,2.71097,3688.8,3688.4,1.6536]
[1736178550054,2.71101,3688.7,3688.4,1.6536]
[1736178550560,2.71083,3688.9,3688.5,0.156]
[1736178550767,2.71105,3688.6,3688.1,1.6335]
[1736178550925,2.71105,3688.6,3687.5,9.98569159]
[1736178550926,2.71105,3688.6,3688.2,0.156]
[1736178551127,2.71131,3688.3,3688.2,0.156]
[1736178551327,2.7114,3688.2,3687.7,1.6335]
[1736178551538,2.7114,3688.2,3687.8,0.156]
[1736178551741,2.7114,3688.2,3687.8,0.33495]
[1736178552271,2.73809769,3688.6,3687.8,0.33495]
[1736178552574,2.71144,3688.1,3687.8,0.33495]
[1736178552798,0.02704769,3688.0,3687.1,1.6228]
[1736178552926,2.73852769,3688.1,3687.1,1.6228]
[1736178553132,2.73852769,3688.1,3687.2,0.156]
[1736178553431,2.7123,3686.9,3686.6,1.11569159]
[1736178553627,2.7123,3686.9,3686.8,1.156]
[1736178553826,0.54513362,3687.3,3686.8,1.156]
[1736178554078,2.7123,3686.9,3686.8,1.156]
[1736178555070,0.0075,3687.9,3686.8,1.156]
[1736178555265,0.62086547,3687.8,3686.8,1.156]
[1736178555471,2.7123,3686.9,3686.8,1.156]
[1736178556774,2.7123,3686.9,3686.8,1.0]
[1736178557371,2.7123,3686.9,3685.9,1.87369158]
[1736178557596,2.71289,3686.1,3686.0,0.156]
[1736178558434,2.71289,3686.1,3686.0,0.35896916]
[1736178559714,2.71289,3686.1,3685.9,1.87369158]
[1736178559715,2.71296,3686.0,3685.9,1.87369158]
[1736178559898,2.71296,3686.0,3685.9,2.02969158]
[1736178561822,4.33026,3686.0,3685.9,1.87369158]
[1736178562520,2.71296,3686.0,3685.9,1.87369158]
[1736178563232,2.71296,3686.0,3685.9,2.07666074]
[1736178564228,2.71296,3686.0,3685.9,1.87369158]
[1736178564863,1.5315,3686.7,3685.9,1.87369158]
[1736178565046,2.71235,3686.9,3686.1,1.5898]
[1736178565781,0.52965003,3686.8,3686.2,0.156]
[1736178565981,1.5315,3687.4,3686.3,0.25670432]
[1736178566187,3.24957095,3687.0,3686.3,0.22958]
[1736178566415,2.7123,3686.9,3686.3,0.22958]
[1736178566857,1.6365,3686.7,3686.0,0.156]
[1736178567030,2.71252,3686.6,3686.0,0.156]
[1736178567231,2.71266,3686.5,3686.0,0.156]
[1736178567431,2.71289,3686.1,3686.0,0.156]
[1736178569212,2.71289,3686.1,3686.0,35.156]
[1736178569875,3.25907896,3686.1,3686.0,35.156]
[1736178571675,3.25907896,3686.1,3686.0,35.99871301]
[1736178571970,1.6365,3686.7,3686.0,35.99871301]
[1736178571971,4.34901,3686.7,3686.0,35.99871301]
[1736178572172,0.54743683,3686.6,3686.1,1.66822795]
[1736178572412,2.71268,3686.4,3686.1,1.6411]
[1736178572630,2.71267,3686.4,3686.3,35.0]
[1736178573486,4.32757,3686.4,3686.3,35.0]
[1736178575887,2.71296,3686.0,3685.9,1.87369158]
[1736178576927,2.71296,3686.0,3685.9,36.87369158]
[1736178577133,4.34766,3686.0,3685.9,36.87369158]
[1736178578432,1.6619,3686.5,3685.9,39.5912675]
[1736178578637,3.26002683,3686.6,3686.0,0.55]
[1736178579067,6.26002683,3686.6,3686.5,35.0]
[1736178579487,3.26002683,3686.6,3686.5,35.0]
[1736178580211,1.6283,3687.3,3686.6,0.55]
[1736178580498,0.55191386,3687.3,3686.8,0.55]
[1736178580705,2.71184,3687.6,3687.1,1.5352]
[1736178580921,3.2604201,3687.6,3687.5,35.0]
[1736178581455,2.71165,3687.8,3687.5,37.71757592]
[1736178581692,2.71139,3688.2,3687.5,2.71757592]
[1736178581693,2.71172,3687.7,3687.5,2.71757592]
[1736178581893,3.25340757,3687.7,3687.2,0.55]
[1736178582097,3.25340757,3687.7,3687.6,35.0]
[1736178582472,2.71162,3687.9,3687.6,35.0]
[1736178582675,0.55520127,3687.8,3687.2,0.55]
[1736178582879,0.55520127,3687.8,3687.3,0.0271165]
[1736178583070,3.26684127,3687.8,3687.5,0.55]
[1736178583276,3.26684127,3687.8,3687.7,35.0]
[1736178587774,4.80944127,3687.8,3687.7,35.0]
[1736178590904,2.71215,3687.1,3687.0,0.156]
[1736178591819,2.71236,3686.9,3686.7,1.6275]
[1736178592023,2.71215,3687.1,3686.8,35.0]
[1736178592228,2.7123,3686.9,3686.8,35.0]
[1736178592515,2.7123,3686.9,3686.2,0.55]
[1736178592516,2.7128,3686.3,3686.2,0.55]
[1736178592714,2.7128,3686.3,3686.2,0.706]
[1736178592926,2.7128,3686.3,3686.2,35.706]
[1736178593724,2.7128,3686.3,3686.2,35.156]
[1736178594024,2.71237,3686.8,3686.2,35.0]
[1736178594225,2.71274,3686.3,3686.2,35.0]
[1736178594424,2.71296,3686.0,3685.9,1.87369158]
[1736178594630,2.71296,3686.0,3685.9,2.92015074]
[1736178594849,2.71296,3686.0,3685.9,37.92015074]
[1736178595336,2.71296,3686.0,3685.9,37.76415074]
[1736178595531,2.71296,3686.0,3685.9,37.57969158]
[1736178595829,2.71296,3686.0,3685.9,37.02969158]
[1736178597435,3.2627671,3686.0,3685.9,37.02969158]
[1736178597635,2.71284,3686.2,3685.9,37.02969158]
[1736178597799,2.71284,3686.2,3686.0,0.55]
[1736178598153,0.5414512,3686.6,3686.0,2.10605239]
[1736178598463,4.40374905,3687.6,3686.7,1.5135]
[1736178598736,1.69192905,3687.6,3686.8,0.55]
[1736178599144,1.1279527,3687.6,3686.8,0.57712054]
[1736178599315,2.71196,3687.4,3687.3,35.55]
[1736178599513,2.71196,3687.4,3687.3,35.706]
[1736178601048,2.71196,3687.4,3687.3,35.156]
[1736178601642,0.54714841,3687.5,3687.3,35.156]
[1736178601841,0.54714841,3687.5,3687.3,2.87357592]
[1736178602030,0.54714841,3687.5,3687.4,1.5465]
[1736178602192,0.54714841,3687.5,3687.4,36.5465]
[1736178602413,3.0,3688.3,3687.5,0.55]
[1736178602414,2.71161,3687.9,3687.5,0.55]
[1736178602618,3.2577021,3687.9,3687.5,0.55]
[1736178603155,3.2577021,3687.9,3687.8,35.55]
[1736178603364,0.5461321,3687.9,3687.8,35.55]
[1736178603515,1.1279527,3688.6,3688.1,0.55]
[1736178603715,2.71083,3688.9,3688.2,0.02711208]
[1736178603936,2.71083,3688.9,3688.1,0.55]
[1736178604154,2.71083,3688.9,3688.8,35.55]
[1736178604322,2.71083,3688.9,3688.8,35.706]
[1736178605074,1.1279527,3689.0,3688.9,0.55]
[1736178605387,3.8381227,3689.9,3688.9,0.57710665]
[1736178605562,2.2559054,3690.3,3688.8,2.86687]
[1736178605563,3.26250596,3689.8,3689.1,0.55]
[1736178605722,3.26250596,3689.8,3689.7,35.0]
[1736178606475,0.55231596,3689.8,3689.7,35.0]
[1736178606621,2.70963,3690.6,3689.8,0.55]
[1736178606963,0.54081615,3690.1,3689.8,0.55]
[1736178607162,3.25077615,3690.1,3689.9,2.71757592]
[1736178607317,3.25077615,3690.1,3689.6,0.55]
[1736178607519,3.25078615,3690.1,3690.0,35.0]
[1736178608114,3.22786955,3690.1,3690.0,35.0]
[1736178608317,3.22786955,3690.1,3690.0,35.156]
[1736178609174,0.51789955,3690.1,3690.0,35.156]
[1736178609356,0.51789955,3690.1,3690.0,35.92209687]
[1736178610173,3.22784955,3690.1,3690.0,35.156]
[1736178610574,2.70943,3690.9,3690.1,0.55]
[1736178610744,0.5532999,3690.7,3690.3,0.55]
[1736178611062,0.5532999,3690.7,3690.4,0.02709566]
[1736178611222,1.6069,3691.9,3690.6,35.0]
[1736178611419,0.55151104,3691.3,3690.7,0.02709222]
[1736178612019,0.55151104,3691.3,3691.2,35.0]
[1736178612256,3.26065104,3691.3,3691.2,35.0]
[1736178612524,3.26065104,3691.3,3690.2,1.6205]
[1736178612525,2.70975,3690.4,3690.2,1.6205]
[1736178612832,2.70955,3690.7,3690.3,0.156]
[1736178613159,4.91915104,3691.3,3690.3,0.18309722]
[1736178613332,2.7093,3691.0,3690.4,0.55]
[1736178613538,2.7093,3691.0,3690.9,35.0]
[1736178613733,3.26064104,3691.3,3690.9,35.0]
[1736178613934,0.55151104,3691.3,3690.3,0.156]
[1736178614134,1.6105,3691.1,3690.2,1.6205]
[1736178614472,2.7098,3690.4,3690.3,0.156]
[1736178615240,2.70961,3690.6,3690.3,0.156]
[1736178615444,2.70929,3691.0,3690.3,0.156]
[1736178615754,2.70965,3690.6,3690.3,0.156]
[1736178615949,1.6105,3691.1,3690.3,0.156]
[1736178616127,2.70944,3690.8,3690.3,0.156]
[1736178616529,2.70936,3691.0,3690.3,0.156]
[1736178616830,2.70914,3691.3,3690.4,1.5968]
[1736178617032,1.5986,3691.8,3690.6,0.55]
[1736178617033,2.70892,3691.6,3690.6,0.55]
[1736178617256,2.70892,3691.6,3690.7,0.0270908]
[1736178617421,2.70892,3691.6,3690.8,1.5668]
[1736178617627,2.70898,3691.5,3690.8,1.796008]
[1736178617865,2.70863,3691.9,3690.8,1.796008]
[1736178618039,0.53622092,3691.4,3690.8,1.796008]
[1736178618241,3.24525092,3691.4,3690.8,1.796008]
[1736178618544,2.70915,3691.2,3690.8,1.796008]
[1736178618868,2.70915,3691.2,3690.8,1.5668]
[1736178619070,0.53622092,3691.4,3690.8,1.5668]
[1736178619245,2.70878,3691.7,3690.9,0.02709111]
[1736178619860,0.53741324,3691.5,3690.9,0.02709111]
[1736178620029,0.53741324,3691.5,3690.8,1.5668]
[1736178620228,0.53741324,3691.5,3690.9,0.18376992]
[1736178621070,2.70865,3691.9,3690.9,0.15668]
[1736178621231,2.70865,3691.9,3691.0,0.02708869]
[1736178621436,0.55291346,3691.7,3691.0,0.02708869]
[1736178621677,0.55291346,3691.7,3691.1,1.5983]
[1736178621864,0.55291346,3691.7,3691.2,0.20529556]
[1736178622664,2.70823,3692.5,3691.2,0.20529556]
[1736178622665,2.70848,3692.1,3691.2,0.20529556]
[1736178623174,0.55242661,3691.9,3691.2,0.20529556]
[1736178623382,0.55242661,3691.9,3691.2,0.17820687]
[1736178624095,0.55242661,3691.9,3691.1,1.5983]
[1736178624304,2.70902,3691.4,3691.1,1.5983]
[1736178624438,2.70907,3691.3,3691.2,0.156]
[1736178624632,2.70871,3691.8,3691.2,0.156]
[1736178625027,0.54348679,3691.5,3691.2,0.156]
[1736178625298,2.70885,3691.7,3691.2,0.156]
[1736178625450,2.7086,3692.0,3691.3,1.573]
[1736178625905,2.70871,3691.8,3691.3,1.573]
[1736178626402,2.70873,3691.8,3691.3,1.573]
[1736178626582,2.7088,3691.7,3691.3,1.573]
[1736178626964,3.24436894,3691.9,3691.3,1.573]
[1736178627445,3.24436894,3691.9,3690.1,2.0]
[1736178627446,0.53573894,3691.9,3691.4,0.156]
[1736178627646,2.70885,3691.6,3691.5,0.156]
[1736178627860,0.59532889,3691.6,3690.6,1.5418]
[1736178628082,2.70937,3690.9,3690.6,1.5418]
[1736178628285,2.70948,3690.8,3690.7,0.156]
[1736178628468,2.70915,3691.2,3690.7,0.156]
[1736178628789,2.70921,3691.2,3690.7,0.156]
[1736178628992,2.70949,3690.8,3690.0,1.6493]
[1736178629188,2.70949,3690.8,3690.1,0.156]
[1736178629657,0.54942404,3691.0,3690.1,0.156]
[1736178629844,1.6429,3690.9,3690.2,0.156]
[1736178630289,2.7098,3690.3,3690.2,0.156]
[1736178630786,2.71004,3690.0,3689.7,1.54]
[1736178630957,1.6429,3690.9,3689.8,0.156]
[1736178631291,2.70996,3690.1,3689.8,0.156]
[1736178631589,0.53045596,3690.3,3689.8,0.156]
[1736178631771,3.24029596,3690.3,3689.8,0.156]
[1736178631986,1.6429,3690.9,3689.8,0.02710113]
[1736178632181,2.76431633,3690.2,3689.9,0.156]
[1736178632386,0.52948046,3690.0,3689.9,0.156]
[1736178632780,0.05504285,3690.0,3689.9,0.156]
[1736178633183,0.55126665,3690.5,3689.9,1.80033303]
[1736178633627,0.05514457,3690.4,3689.9,0.156]
[1736178634270,0.05514457,3690.4,3690.1,0.55]
[1736178634469,1.582,3691.3,3690.1,0.55]
[1736178634666,0.05511914,3690.3,3690.1,0.55]
[1736178634968,2.70929,3691.0,3690.1,14.098]
[1736178635201,0.53966903,3690.8,3690.2,1.850517]
[1736178635402,0.53966903,3690.8,3690.1,0.55]
[1736178635711,0.0548966,3690.7,3690.1,0.55]
[1736178636279,2.7644066,3690.7,3690.0,1.5411]
[1736178637393,0.0548966,3690.7,3690.0,1.5411]
[1736178637594,1.548,3690.6,3690.1,0.155]
[1736178637776,2.7098,3690.3,3690.2,0.155]
[1736178638158,2.76457867,3690.3,3690.2,0.155]
[1736178639514,2.71019,3689.8,3689.3,1.5156]
[1736178639819,2.76457867,3690.3,3689.4,0.155]
[1736178639820,1.5136,3689.9,3689.4,0.155]
[1736178639965,2.76490609,3689.7,3689.4,0.155]
[1736178640167,2.71028,3689.7,3689.4,0.155]
[1736178640383,2.76493065,3689.6,3689.4,0.155]
[1736178640633,2.71039,3689.5,3689.4,0.155]
[1736178640834,2.71056,3689.3,3688.5,1.5156]
[1736178641008,1.618,3689.2,3688.6,0.155]
[1736178641315,1.6724989,3689.2,3688.6,0.155]
[1736178641527,2.7651589,3689.2,3688.6,0.155]
[1736178641729,0.55004945,3688.7,3688.6,0.155]
[1736178642089,0.6038778,3688.7,3688.6,0.155]
[1736178644210,3.3148578,3688.7,3688.6,0.155]
[1736178644591,0.93536358,3688.7,3688.3,0.155]
[1736178644912,1.563,3688.1,3687.2,1.602]
[1736178645122,2.71152,3688.0,3687.7,0.155]
[1736178645332,1.6407,3688.6,3687.7,0.155]
[1736178645539,0.05317927,3687.9,3687.8,1.5937]
[1736178645741,4.35176,3688.6,3687.8,1.5937]
[1736178645946,1.6407,3688.6,3687.9,1.53057]
[1736178646233,1.5859,3689.1,3688.0,0.02711297]
[1736178646376,0.05314132,3688.5,3688.0,0.02711297]
[1736178646579,0.52891038,3689.0,3688.1,0.55]
[1736178646822,0.05311587,3688.4,3688.3,2.1744]
[1736178647008,1.6256,3689.7,3688.4,13.555]
[1736178647181,2.71062,3689.2,3688.3,2.1744]
[1736178647721,3.24316196,3689.2,3688.3,2.1744]
[1736178648481,3.24316196,3689.2,3688.3,1.6244]
[1736178648482,2.71068,3689.1,3688.3,1.6244]
[1736178648679,2.71077,3689.0,3688.4,0.16244]
[1736178649083,0.53254196,3689.2,3688.4,0.16244]
[1736178649313,2.71076,3689.0,3687.8,1.5547]
[1736178649590,1.53,3689.1,3687.8,1.5547]
[1736178649591,2.71098,3688.7,3687.8,1.5547]
[1736178649991,0.05335745,3688.6,3687.8,1.5547]
[1736178650289,0.05335745,3688.6,3687.9,0.02711254]
[1736178650805,2.71088,3688.9,3687.9,0.02711254]
[1736178651125,1.6511,3689.5,3688.4,3.0]
[1736178651379,0.05159887,3688.8,3688.6,0.55]
[1736178651525,2.70988,3690.2,3689.1,1.5766]
[1736178651866,2.69499412,3690.4,3689.2,1.93378211]
[1736178651867,2.70997,3690.1,3689.2,1.93378211]
[1736178652161,1.5634,3690.4,3689.3,0.57710138]
[1736178652364,0.16059708,3690.5,3689.3,0.57710138]
[1736178652365,0.7095867,3690.5,3689.7,2.71023]
[1736178652518,1.13159412,3690.8,3690.0,1.5768]
[1736178652714,1.13159412,3690.8,3690.1,0.02709545]
[1736178652947,1.13159412,3690.8,3690.2,0.43139654]
[1736178653114,0.55484609,3690.7,3690.2,0.45849234]
[1736178653330,1.13159412,3690.8,3690.2,0.02709579]
[1736178653522,0.04248213,3690.6,3690.2,0.02709579]
[1736178653713,0.53781895,3690.9,3690.2,0.02709579]
[1736178653918,0.04245671,3690.5,3690.2,0.02709579]
[1736178654119,0.53781895,3690.9,3690.3,0.48639058]
[1736178654669,0.04127314,3690.8,3690.1,0.55]
[1736178654966,0.04127314,3690.8,3690.4,0.155]
[1736178655736,0.04127314,3690.8,3690.5,14.097]
[1736178655939,1.5441,3691.3,3690.5,14.097]
[1736178656131,0.04134107,3690.7,3690.5,0.55]
[1736178656337,0.54906762,3691.0,3690.5,14.097]
[1736178656537,0.54906762,3691.0,3690.6,1.4252]
[1736178656754,0.54906762,3691.0,3690.5,0.55]
[1736178657577,0.04143249,3690.9,3690.5,0.55]
[1736178657922,0.04143249,3690.9,3690.4,0.155]
[1736178659001,0.04143249,3690.9,3690.0,1.5768]
[1736178659202,2.70944,3690.8,3690.0,1.5768]
[1736178659392,2.70944,3690.8,3690.1,0.155]
[1736178659595,0.04005849,3690.7,3690.1,0.155]
[1736178659962,0.04005849,3690.7,3690.2,0.55]
[1736178660167,0.54906762,3691.0,3690.2,0.55]
[1736178660367,0.03996408,3690.6,3690.1,0.155]
[1736178660679,2.7096,3690.6,3690.1,0.155]
[1736178660879,0.27096,3690.6,3689.6,1.5522]
[1736178661081,0.03991431,3690.5,3690.2,0.155]
[1736178661283,1.6627,3690.9,3690.2,0.155]
[1736178661462,2.750003,3690.8,3690.2,0.155]
[1736178661662,2.70952,3690.7,3690.2,0.155]
[1736178661863,0.04051216,3690.6,3690.2,0.155]
[1736178662081,1.6627,3690.9,3690.2,0.155]
[1736178662379,0.55545769,3690.7,3690.2,0.155]
[1736178662581,0.04050213,3690.8,3690.3,1.6492]
[1736178662891,0.5348631,3691.0,3690.4,0.20751412]
[1736178663093,0.04044831,3690.7,3690.5,0.55]
[1736178663407,2.70892,3691.5,3690.6,0.0270921]
[1736178663593,1.6173,3691.7,3690.7,1.6492]
[1736178663781,4.3261,3691.7,3690.8,0.24971966]
[1736178664001,0.53329141,3691.5,3690.8,0.22262921]
[1736178664697,3.24221141,3691.5,3690.8,0.22262921]
[1736178665003,0.03943226,3691.4,3690.8,0.24971966]
[1736178665191,0.03943226,3691.4,3690.8,0.22262921]
[1736178665393,0.03943226,3691.4,3690.9,0.18718292]
[1736178666607,0.03943226,3691.4,3690.9,0.21427338]
[1736178667110,0.03943226,3691.4,3690.9,0.18718292]
[1736178667448,2.74843226,3691.4,3690.5,0.55]
[1736178667970,0.03943226,3691.4,3690.7,1.5134]
[1736178668256,0.03943226,3691.4,3690.8,0.02709127]
[1736178668830,0.03943226,3691.4,3690.7,1.5134]
[1736178669029,0.03943226,3691.4,3690.8,0.02709127]
[1736178669247,0.03943226,3691.4,3690.9,0.15404913]
[1736178670072,0.03943226,3691.4,3691.0,0.02709084]
[1736178670994,0.03943226,3691.4,3690.9,0.15404913]
[1736178672135,2.74844226,3691.4,3690.9,0.15404913]
[1736178672750,0.03943226,3691.4,3691.0,0.02709134]
[1736178672980,0.03943226,3691.4,3691.2,13.544]
[1736178673286,0.55435886,3691.8,3691.3,1.56812]
[1736178673441,3.26305886,3691.8,3691.3,1.56812]
[1736178673637,3.26305886,3691.8,3691.1,1.5872]
[1736178673887,0.55435886,3691.8,3691.1,1.5872]
[1736178674391,2.7089,3691.6,3691.1,1.5872]
[1736178675353,0.55435886,3691.8,3691.1,1.5872]
[1736178676680,0.55435886,3691.8,3691.1,4.5872]
[1736178676881,0.03501278,3691.7,3691.2,0.729645]
[1736178677195,1.5228,3692.6,3691.3,1.63358712]
[1736178677196,0.531812,3692.0,3691.3,1.63358712]
[1736178677479,0.03498737,3691.6,3691.3,4.34264712]
[1736178677687,2.70821,3692.5,3691.4,13.544]
[1736178677892,2.70821,3692.5,3691.5,1.88871474]
[1736178678063,2.70835,3692.3,3691.5,0.02708553]
[1736178678582,5.57596658,3693.1,3691.6,1.5961]
[1736178678583,0.0352412,3692.2,3691.6,1.5961]
[1736178678797,1.6662,3692.9,3691.8,1.5961]
[1736178679005,0.03536587,3692.1,3691.9,0.02708291]
[1736178679303,2.70818,3692.6,3691.9,0.2049012]
[1736178679460,0.03534046,3692.0,3691.9,0.2049012]
[1736178679660,3.2540883,3692.5,3691.9,0.17781829]
[1736178679854,2.70828,3692.4,3691.9,0.17781829]
[1736178680060,2.74372207,3692.4,3691.9,0.17781829]
[1736178680264,2.7084,3692.3,3691.9,0.17781829]
[1736178680601,2.74399158,3692.2,3691.7,0.155]
[1736178681660,1.61076158,3692.2,3691.4,1.5389]
[1736178681863,2.70865,3691.9,3691.5,0.155]
[1736178682105,1.61076158,3692.2,3691.5,0.155]
[1736178682253,0.03553259,3691.8,3691.5,0.155]
[1736178683100,2.70878,3691.7,3691.5,0.155]
[1736178683493,2.70896,3691.5,3691.0,1.5535]
[1736178683694,2.70864,3691.9,3690.3,1.13134925]
[1736178683695,0.03539038,3691.4,3691.1,0.155]
[1736178683901,2.70855,3692.0,3691.1,0.155]
[1736178684103,2.74412499,3691.9,3691.1,0.155]
[1736178684303,2.70914,3691.2,3691.1,0.155]
[1736178684511,0.03514896,3691.2,3691.1,0.155]
[1736178684673,0.03188612,3691.2,3691.1,0.155]
[1736178684873,0.03188612,3691.2,3691.1,1.6989]
[1736178685173,2.70866,3691.9,3691.1,3.52329]
[1736178685391,0.03484554,3691.2,3691.1,3.52329]
[1736178685589,0.531912,3691.7,3691.1,1.6989]
[1736178685771,1.5768,3692.1,3691.2,0.57708832]
[1736178685971,4.23695,3692.5,3691.4,0.55]
[1736178686171,2.70829,3692.4,3691.6,1.6184]
[1736178686417,2.70829,3692.4,3691.7,0.02708509]
[1736178686723,0.54485772,3692.2,3691.7,0.02708509]
[1736178687231,0.54485772,3692.2,3691.7,0.55]
[1736178687408,2.70804,3692.7,3691.7,0.57708456]
[1736178687611,2.70804,3692.7,3691.8,0.49044046]
[1736178687813,0.03515129,3692.1,3691.9,0.02708297]
[1736178688137,2.70816,3692.6,3691.9,0.02708297]
[1736178688418,0.54415356,3692.4,3691.8,0.49044046]
[1736178688573,0.54415356,3692.4,3691.9,0.26588405]
[1736178688774,3.25243356,3692.4,3691.9,0.26588405]
[1736178689175,3.25243356,3692.4,3692.3,35.0]
[1736178690806,3.25243356,3692.4,3692.3,35.155]
[1736178691530,3.28800978,3692.4,3692.3,35.155]
[1736178692023,0.57972978,3692.4,3692.3,35.155]
[1736178692209,0.57972978,3692.4,3692.3,35.87690886]
[1736178692522,0.53287756,3692.5,3692.3,35.87690886]
[1736178692726,0.53287756,3692.5,3692.3,0.87690886]
[1736178692930,0.53287756,3692.5,3692.3,0.155]
[1736178693233,0.53287756,3692.5,3692.4,35.0]
[1736178693393,3.24106756,3692.5,3692.4,35.0]
[1736178694988,3.27670567,3692.5,3692.4,35.0]
[1736178695696,0.56851567,3692.5,3692.4,35.0]
[1736178695881,0.56851567,3692.5,3692.4,37.30197501]
[1736178696081,0.56851567,3692.5,3692.4,35.0]
[1736178696982,0.53287756,3692.5,3692.4,35.0]
[1736178697251,0.56847918,3692.5,3692.4,35.0]
[1736178697532,0.03560162,3692.5,3692.4,35.0]
[1736178697749,2.70782,3693.0,3692.4,35.0]
[1736178697904,2.70768,3693.2,3692.5,2.71757592]
[1736178698105,2.70768,3693.2,3692.4,0.02707933]
[1736178698433,2.70768,3693.2,3693.1,35.0]
[1736178699082,2.71254,3693.4,3693.1,35.0]
[1736178699287,0.005,3693.4,3693.1,0.8682449]
[1736178699593,0.005,3693.4,3692.4,0.02707792]
[1736178699799,2.71253,3693.4,3693.3,35.0]
[1736178700791,3.2413975,3693.4,3693.3,35.0]
[1736178701690,0.5338675,3693.4,3693.3,35.0]
[1736178702206,0.57047596,3693.4,3693.3,35.0]
[1736178702516,0.005,3693.4,3693.3,37.71757592]
[1736178702929,0.005,3693.4,3693.3,37.87257592]
[1736178703907,2.71253,3693.4,3693.3,37.87257592]
[1736178704107,2.71253,3693.4,3693.3,35.155]
[1736178705168,2.71253,3693.4,3693.3,35.0]
[1736178705381,2.74932488,3693.4,3693.3,35.155]
[1736178705577,2.71253,3693.4,3693.3,35.155]
[1736178706111,0.005,3693.4,3693.3,35.155]
[1736178706253,0.005,3693.4,3693.3,37.87257592]
[1736178707046,0.04179488,3693.4,3693.3,37.87257592]
[1736178707245,2.71253,3693.4,3693.3,35.155]
[1736178707450,4.33003,3693.4,3693.3,35.155]
[1736178707707,4.36682488,3693.4,3693.3,35.155]
[1736178707885,2.74932488,3693.4,3693.3,35.155]
[1736178708525,2.71253,3693.4,3693.3,35.155]
[1736178708880,2.74941403,3693.4,3693.3,37.87257592]
[1736178709081,2.71253,3693.4,3693.3,37.87257592]
[1736178710138,0.005,3693.4,3693.3,37.87257592]
[1736178710943,0.005,3693.4,3693.3,39.48747592]
[1736178713008,0.005,3693.4,3693.3,37.87257592]
[1736178713206,0.005,3693.4,3693.3,35.155]
[1736178714938,2.71253,3693.4,3693.3,35.155]
[1736178715303,2.74946264,3693.4,3693.3,35.155]
[1736178716258,2.70819,3692.5,3692.4,1.13134925]
[1736178716462,2.70819,3692.5,3692.4,1.28634925]
[1736178716684,4.74589967,3692.5,3692.4,1.13134925]
[1736178716955,4.74589967,3692.5,3692.0,1.13134925]
[1736178716956,2.70848,3692.1,3692.0,1.13134925]
[1736178717108,2.70848,3692.1,3692.0,36.13134925]
[1736178717309,4.25708,3692.1,3692.0,36.13134925]
[1736178717667,4.29323974,3692.1,3692.0,36.13134925]
[1736178717966,5.25098637,3692.1,3692.0,36.13134925]
[1736178718338,4.28703,3691.9,3691.8,1.02795081]
[1736178718538,2.70903,3691.4,3691.2,0.155]
[1736178718799,2.70879,3691.7,3691.2,0.155]
[1736178719317,2.70879,3691.7,3691.6,35.0]
[1736178720709,1.5784,3691.9,3691.6,35.0]
[1736178720868,2.70875,3691.8,3691.6,35.0]
[1736178721197,0.54814401,3692.1,3691.2,0.155]
[1736178721409,3.18551106,3692.0,3691.2,0.155]
[1736178721559,2.70902,3691.4,3691.2,0.155]
[1736178721746,2.70902,3691.4,3691.3,0.155]
[1736178721940,2.70902,3691.4,3691.3,35.155]
[1736178722344,2.70869,3691.9,3691.3,35.155]
[1736178722575,2.70869,3691.9,3691.4,2.71757592]
[1736178722776,0.54814401,3692.1,3691.3,0.155]
[1736178722979,2.70856,3692.0,3691.3,0.155]
[1736178723603,0.54814401,3692.1,3691.9,35.0]
[1736178723988,1.5403,3692.8,3691.5,1.649]
[1736178724168,0.53648295,3692.6,3691.7,1.5582]
[1736178724366,3.83950412,3692.9,3692.5,35.0]